fUSD/lending_fUSD_20251213
["ID","MTS","AMOUNT","RATE_DAILY","PERIOD"]
[398421531,1765635051078,-222.763778,0.000179,2]
[398421532,1765635051088,-279.856822,0.000179,2]
[398421533,1765635051098,-443.032683,0.000179,2]
[398421534,1765635051107,-222.763778,0.000179,2]
[398421535,1765635051116,-567.483536,0.000179,2]
[398421536,1765635051126,-443.032683,0.000179,2]
[398421537,1765635051135,-222.763778,0.000179,2]
[398421538,1765635051146,-724.463939,0.000179,2]
[398421539,1765635051156,-567.483536,0.000179,2]
[398421540,1765635051166,-222.763778,0.000179,2]
[398421541,1765635051175,-443.032683,0.000179,2]
[398421542,1765635051185,-724.463939,0.000179,2]
[398421543,1765635051195,-151.0,0.000179,2]
[398421544,1765635051208,-567.483536,0.000179,2]
[398421545,1765635051217,-724.463939,0.000179,2]
[398421546,1765635051227,-151.0,0.000179,2]
[398421547,1765635051236,-567.483536,0.000179,2]
[398421548,1765635051246,-578.097822,0.000179,2]
[398421549,1765635051256,-724.463939,0.000179,2]
[398421550,1765635051265,-578.097822,0.000179,2]
[398421551,1765635051275,-578.097822,0.000179,2]
[398421552,1765635051284,-180.710693,0.000179,2]
[398421553,1765635051295,-578.097822,0.000179,2]
[398421554,1765635051304,-180.710693,0.000179,2]
[398421555,1765635051313,-180.710693,0.000179,2]
[398421556,1765635051323,-180.710693,0.000179,2]
[398421557,1765635051332,-151.0,0.000179,2]
[398421558,1765635051343,-310.51986,0.000179,2]
[398421559,1765635051352,-482.984979,0.000179,2]
[398421560,1765635051360,-347.25268631,0.000179,3]
[398421561,1765635051370,-482.984979,0.000179,2]
[398421562,1765635051379,-310.51986,0.000179,2]
[398421563,1765635051389,-482.984979,0.000179,2]
[398421564,1765635051399,-310.51986,0.000179,2]
[398421565,1765635051409,-151.0,0.000179,2]
[398421566,1765635051419,-229.506462,0.000179,2]
[398421567,1765635051428,-482.984979,0.000179,2]
[398421568,1765635051438,-310.51986,0.000179,2]
[398421569,1765635051449,-151.0,0.000179,2]
[398421570,1765635051459,-229.506462,0.000179,2]
[398421571,1765635051468,-151.0,0.000179,2]
[398421572,1765635051478,-229.506462,0.000179,2]
[398421573,1765635051490,-151.0,0.000179,2]
[398421574,1765635051499,-229.506462,0.000179,2]
[398421575,1765635051508,-151.0,0.000179,2]
[398421576,1765635051517,-151.0,0.000179,2]
[398421577,1765635051527,-151.0,0.000179,2]
[398421578,1765635051536,-151.0,0.000179,2]
[398421579,1765635051545,-151.0,0.000179,2]
[398421580,1765635051554,-151.0,0.000179,2]
[398421581,1765635051563,-151.0,0.000179,2]
[398421582,1765635051574,-156.512326,0.000179,2]
[398421583,1765635051585,-151.0,0.000179,2]
[398421584,1765635051595,-166.131492,0.000179,2]
[398421585,1765635051605,-166.131492,0.000179,2]
[398421586,1765635051614,-151.0,0.000179,2]
[398421587,1765635051624,-151.0,0.000179,2]
[398421588,1765635051634,-166.131492,0.000179,2]
[398421589,1765635051644,-151.0,0.000179,2]
[398421590,1765635051653,-172.126706,0.000179,2]
[398421591,1765635051664,-151.0,0.000179,2]
[398421592,1765635051675,-518.958597,0.000179,2]
[398421593,1765635051685,-701.632631,0.000179,2]
[398421594,1765635051696,-166.131492,0.000179,2]
[398421595,1765635051707,-151.0,0.000179,2]
[398421596,1765635051717,-151.0,0.000179,2]
[398421597,1765635051726,-172.126706,0.000179,2]
[398421598,1765635051736,-151.0,0.000179,2]
[398421599,1765635051746,-518.958597,0.000179,2]
[398421600,1765635051755,-701.632631,0.000179,2]
[398421601,1765635051765,-151.0,0.000179,2]
[398421602,1765635051774,-515.72443,0.000179,2]
[398421603,1765635051783,-518.958597,0.000179,2]
[398421604,1765635051792,-172.126706,0.000179,2]
[398421605,1765635051802,-701.632631,0.000179,2]
[398421606,1765635051812,-151.0,0.000179,2]
[398421607,1765635051823,-515.72443,0.000179,2]
[398421608,1765635051834,-518.958597,0.000179,2]
[398421609,1765635051844,-701.632631,0.000179,2]
[398421610,1765635051854,-172.126706,0.000179,2]
[398421611,1765635051866,-515.72443,0.000179,2]
[398421612,1765635051875,-151.0,0.000179,2]
[398421613,1765635051885,-515.72443,0.000179,2]
[398421614,1765635051895,-255.032237,0.000179,2]
[398421615,1765635051905,-670.450876,0.000179,2]
[398421616,1765635051914,-670.450876,0.000179,2]
[398421617,1765635051923,-151.0,0.000179,2]
[398421618,1765635051935,-670.450876,0.000179,2]
[398421619,1765635051945,-203.153937,0.000179,2]
[398421620,1765635051954,-670.450876,0.000179,2]
[398421621,1765635051964,-223.950162,0.000179,2]
[398421622,1765635051973,-203.153937,0.000179,2]
[398421623,1765635051983,-203.153937,0.000179,2]
[398421624,1765635051992,-203.153937,0.000179,2]
[398421625,1765635052001,-151.0,0.000179,2]
[398421626,1765635052011,-154.188265,0.000179,2]
[398421627,1765635052020,-264.154188,0.000179,2]
[398421628,1765635052029,-151.0,0.000179,2]
[398421629,1765635052039,-264.154188,0.000179,2]
[398421630,1765635052049,-264.154188,0.000179,2]
[398421631,1765635052058,-152.18951,0.000179,2]
[398421632,1765635052067,-264.154188,0.000179,2]
[398421633,1765635052077,-1098.577686,0.000179,2]
[398421634,1765635052086,-1098.577686,0.000179,2]
[398421635,1765635052096,-482.867898,0.000179,2]
[398421636,1765635052105,-1073.732001,0.000179,2]
[398421637,1765635052115,-1098.577686,0.000179,2]
[398421638,1765635052124,-482.867898,0.000179,2]
[398421639,1765635052134,-1073.732001,0.000179,2]
[398421640,1765635052143,-1098.577686,0.000179,2]
[398421641,1765635052153,-1969.955772,0.000179,2]
[398421642,1765635052162,-482.867898,0.000179,2]
[398421643,1765635052172,-151.0,0.000179,2]
[398421644,1765635052181,-1073.732001,0.000179,2]
[398421645,1765635052191,-1969.955772,0.000179,2]
[398421646,1765635052200,-546.009955,0.000179,2]
[398421647,1765635052210,-482.867898,0.000179,2]
[398421648,1765635052221,-1073.732001,0.000179,2]
[398421649,1765635052230,-797.027008,0.000179,2]
[398421650,1765635052240,-1969.955772,0.000179,2]
[398421651,1765635052249,-151.0,0.000179,2]
[398421652,1765635052259,-546.009955,0.000179,2]
[398421653,1765635052268,-151.0,0.000179,2]
[398421654,1765635052277,-1969.955772,0.000179,2]
[398421655,1765635052287,-797.027008,0.000179,2]
[398421656,1765635052296,-546.009955,0.000179,2]
[398421657,1765635052306,-151.0,0.000179,2]
[398421658,1765635052315,-355.503979,0.000179,2]
[398421659,1765635052325,-546.009955,0.000179,2]
[398421660,1765635052334,-797.027008,0.000179,2]
[398421661,1765635052344,-151.0,0.000179,2]
[398421662,1765635052353,-151.0,0.000179,2]
[398421663,1765635052363,-355.503979,0.000179,2]
[398421664,1765635052372,-151.0,0.000179,2]
[398421665,1765635052381,-797.027008,0.000179,2]
[398421666,1765635052391,-167.09,0.00017938,2]
[398421667,1765635052400,-500.0,0.00017951,2]
[398421668,1765635052410,-840.0,0.00017951,2]
[398421669,1765635052419,-500.0,0.00017951,2]
[398421670,1765635052429,-500.0,0.00017951,2]
[398421671,1765635052439,-500.0,0.00017973,2]
[398421672,1765635052448,-500.0,0.00017973,2]
[398421673,1765635052458,-500.0,0.00017973,2]
[398421674,1765635052468,-567.32208643,0.00017973,2]
[398421675,1765635052479,-500.0,0.00017973,2]
[398421676,1765635052489,-500.0,0.00017973,2]
[398421677,1765635052499,-500.0,0.00017973,2]
[398421678,1765635052509,-500.0,0.00017973,2]
[398421679,1765635052519,-500.0,0.00017973,2]
[398421680,1765635052530,-500.0,0.00017973,2]
[398421681,1765635052539,-566.62084446,0.00017973,2]
[398421682,1765635052550,-500.0,0.00017973,2]
[398421683,1765635052560,-500.0,0.00017973,2]
[398421684,1765635052572,-500.0,0.00017973,2]
[398421685,1765635052581,-500.0,0.00017973,2]
[398421686,1765635052591,-500.0,0.00017973,2]
[398421687,1765635052602,-500.0,0.00017973,2]
[398421688,1765635052614,-330.25327919,0.00017973,2]
[398421689,1765635052624,-165.28083173,0.00017973,2]
[398421690,1765635052635,-500.0,0.00017973,2]
[398421691,1765635052646,-500.0,0.00017973,2]
[398421692,1765635052656,-500.0,0.00017973,2]
[398421693,1765635052666,-500.0,0.00017973,2]
[398421694,1765635052676,-500.0,0.00017973,2]
[398421695,1765635052686,-500.0,0.00017973,2]
[398421696,1765635052698,-500.0,0.00017973,2]
[398421697,1765635052707,-500.0,0.00017973,2]
[398421698,1765635052719,-500.0,0.00017973,2]
[398421699,1765635052729,-500.0,0.00017973,2]
[398421700,1765635052739,-500.0,0.00017973,2]
[398421701,1765635052748,-500.0,0.00017973,2]
[398421702,1765635052757,-500.0,0.00017973,2]
[398421703,1765635052767,-500.0,0.00017973,2]
[398421704,1765635052777,-500.0,0.00017973,2]
[398421705,1765635052787,-150.0,0.0001799,2]
[398421706,1765635052798,-183.67518317,0.0001799,2]
[398421707,1765635052807,-183.67518317,0.0001799,2]
[398421708,1765635052818,-150.0,0.00017999,2]
[398421709,1765635052829,-500.0,0.00017999,2]
[398421710,1765635052838,-500.0,0.00017999,2]
[398421711,1765635052849,-500.0,0.00017999,2]
[398421712,1765635052859,-500.0,0.00017999,2]
[398421713,1765635052869,-500.0,0.00017999,2]
[398421714,1765635052881,-500.0,0.00017999,2]
[398421715,1765635052891,-500.0,0.00017999,2]
[398421716,1765635052900,-500.0,0.00017999,2]
[398421717,1765635052911,-500.0,0.00017999,2]
[398421718,1765635052920,-472.0717495,0.00017999,2]
[398421719,1765635052930,-446529.73404027,0.00018,2]
[398421720,1765635053043,-380143.92555774,0.00018,2]
[398421721,1765635054054,-3354.35483825,0.00018,2]
[398421722,1765635054066,-23289.57036021,0.00018,2]
[398421723,1765635054087,-598.42417427,0.00018,2]
[398421724,1765635054338,-152.0,0.00016439,2]
[398421725,1765635054348,-355.503979,0.00017808,2]
[398421726,1765635054359,-151.0,0.00017808,2]
[398421727,1765635054368,-355.503979,0.000179,2]
[398421728,1765635054378,-355.503979,0.000179,2]
[398421729,1765635054388,-90766.08806298,0.00018,2]
[398421730,1765635054400,-15173.2785,0.00018,2]
[398421731,1765635054452,-22333.34946227,0.00018,2]
[398421732,1765635054465,-5426.82916256,0.00018,2]
[398421733,1765635054769,-1.7e-07,0.00018,2]
[398421734,1765635054781,-1368.08453927,0.00018,2]
[398421735,1765635054792,-1511.73665675,0.00018,2]
[398421736,1765635054807,-400.5302,0.00018,2]
[398421737,1765635054850,-151.0,0.000179,2]
[398421738,1765635054860,-103.21570464,0.00018,2]
[398421739,1765635055253,-233.512445,0.00017808,2]
[398421740,1765635055263,-151.0,0.00017808,2]
[398421741,1765635055272,-151.0,0.00017808,2]
[398421742,1765635055282,-233.512445,0.00017808,2]
[398421743,1765635055291,-233.512445,0.000179,2]
[398421744,1765635055301,-10.911622,0.000179,2]
[398421745,1765635055313,-223.339462,0.000179,2]
[398421746,1765635055322,-187.060478,0.000179,2]
[398421747,1765635055333,-302.0,0.000179,2]
[398421748,1765635055345,-0.8694087,0.000179,2]
[398421749,1765635055354,-233.512445,0.000179,2]
[398421750,1765635055364,-21980.99728318,0.00018,2]
[398421751,1765635055384,-3427.5019507,0.00018,2]
[398421752,1765635055713,-471.25215042,0.00018,2]
[398421753,1765635055936,-361.17075883,0.00015937,2]
[398421754,1765635055957,-638.82924117,0.00015937,2]
[398421755,1765635055966,-164.28,0.0001644,2]
[398421756,1765635055975,-233.512445,0.00017808,2]
[398421757,1765635055984,-233.512445,0.00017808,2]
[398421758,1765635055994,-233.512445,0.000179,2]
[398421759,1765635056004,-233.512445,0.000179,2]
[398421760,1765635056013,-2419.67760492,0.00018,2]
[398421761,1765635056024,-1831.96,0.00018,2]
[398421762,1765635056201,-385067.79371465,0.00018,2]
[398421764,1765635107534,-419.75548614,0.00015618,2]
[398421765,1765635110628,-156.81450852,0.00015618,2]
[398421766,1765635112647,-290.98491756,0.00015618,2]
[398421767,1765635115126,-195.05741562,0.00015618,2]
[398421768,1765635128725,-90.64967216,0.00015618,2]
[398421769,1765635128749,-114.98184774,0.00015777,2]
[398421770,1765635130271,-80.01815226,0.00015777,2]
[398421771,1765635130296,-183.54579202,0.00015777,2]
[398421772,1765635371440,1318.95,0.0001538,2]
[398421773,1765635426716,270.13,0.0001533,2]
[398421774,1765635467457,-470.7119336,0.00015727,2]
[398421775,1765635471027,-189.41099137,0.00015727,2]
[398421776,1765635472062,-237.29972959,0.00015727,2]
[398421777,1765635474275,-344.31263271,0.00015727,2]
[398421778,1765635482610,150.0,0.00015228,2]
[398421779,1765635486394,195.0,0.00015478,2]
[398421780,1765635487142,300.0,0.00015478,2]
[398421781,1765635497502,-195.0,0.00015687,2]
[398421782,1765635497525,-101.83093189,0.00015687,2]
[398421783,1765635503215,-198.16906811,0.00015687,2]
[398421784,1765635503240,-139.52247426,0.00015707,2]
[398421785,1765635557502,-373.09480376,0.00015628,2]
[398421786,1765635559964,-224.72972198,0.00015628,2]
[398421787,1765635562502,-244.64840502,0.00015628,2]
[398421788,1765635565985,-333.08728264,0.00015628,2]
[398421789,1765635570244,-304.38416715,0.00015628,2]
[398421790,1765635572337,-283.92142715,0.00015628,2]
[398421791,1765635575821,-310.450772,0.00015628,2]
[398421792,1765635579232,-210.25111406,0.00015628,2]
[398421793,1765635582488,-300.0,0.00015628,2]
[398421794,1765635586517,-166.66,0.00015628,2]
[398421795,1765635590910,-194.44886025,0.00015614,2]
[398421796,1765635593746,-153.79106982,0.00015614,2]
[398421797,1765635595277,-233.14596401,0.00015614,2]
[398421798,1765635597483,-165.50579755,0.00015614,2]
[398421799,1765635600020,-211.52465642,0.00015614,2]
[398421800,1765635602985,-170.88705616,0.00015614,2]
[398421801,1765635603009,-12.49313509,0.00015628,2]
[398421802,1765635605495,-242.90350598,0.00015628,2]
[398421803,1765635608648,-154.04545915,0.00015628,2]
[398421804,1765635611331,-161.36788017,0.00015628,2]
[398421805,1765635624958,712.104928,0.0001555,2]
[398421806,1765635667088,5524.0,0.000145,5]
[398421807,1765635669870,168.81,0.00012127,2]
[398421808,1765635954192,22403.10977575,0.000149,2]
[398421809,1765635988011,160.86,0.00015168,2]
[398421816,1765636078697,-300.0,0.0001567,2]
[398421817,1765636078728,-195.0,0.00015671,2]
[398421818,1765636078758,-250.0,0.00015672,2]
[398421819,1765636078788,-500.0,0.00015677,2]
[398421820,1765636078816,-195.0,0.00015684,2]
[398421821,1765636078845,-239.815118,0.00015692,2]
[398421822,1765636078875,-288.70593134,0.00015707,2]
[398421823,1765636078903,-1200.0,0.00015836,2]
[398421824,1765636078932,-300.0,0.00015836,2]
[398421825,1765636078960,-1200.0,0.00015836,2]
[398421826,1765636078989,-300.0,0.00015836,2]
[398421827,1765636079217,-427.134,0.00015837,2]
[398421828,1765636079442,-657.6835,0.00015837,2]
[398421829,1765636079618,-1315.367,0.00015837,2]
[398421830,1765636079660,-2630.734,0.00015837,2]
[398421831,1765636079797,-4738.542,0.00015837,2]
[398421832,1765636079886,-2500.0,0.00015837,2]
[398421833,1765636079915,-1000.0,0.00015837,2]
[398421834,1765636079945,-1173.5315,0.00015837,2]
[398421835,1765636080057,-652.947,0.00015837,2]
[398421836,1765636080286,-353.94230344,0.00015837,2]
[398421837,1765636081903,-1200.0,0.00015836,2]
[398421838,1765636082388,-3999.03985007,0.00015837,2]
[398421839,1765636082504,-10000.01,0.00015837,2]
[398421840,1765636085608,1704.02,0.00015272,2]
[398421841,1765636087655,-10000.01,0.00015837,2]
[398421842,1765636087775,-10000.01,0.00015837,2]
[398421843,1765636087965,-10000.01,0.00015837,2]
[398421844,1765636088109,-10000.01,0.00015837,2]
[398421845,1765636088232,-10000.01,0.00015837,2]
[398421846,1765636088346,-10000.01,0.00015837,2]
[398421847,1765636088502,-10000.01,0.00015837,2]
[398421848,1765636088642,-10000.01,0.00015837,2]
[398421849,1765636093739,-10000.01,0.00015837,2]
[398421850,1765636099817,-10000.01,0.00015837,2]
[398421851,1765636103062,-10000.01,0.00015837,2]
[398421852,1765636103297,-10000.01,0.00015837,2]
[398421853,1765636103455,-10000.01,0.00015837,2]
[398421854,1765636103565,-10000.01,0.00015837,2]
[398421855,1765636103682,-10000.01,0.00015837,2]
[398421856,1765636103843,-10000.01,0.00015837,2]
[398421857,1765636103975,-10000.01,0.00015837,2]
[398421858,1765636105963,-10000.01,0.00015837,2]
[398421859,1765636110373,-10000.01,0.00015837,2]
[398421860,1765636110387,-10000.01,0.00015837,2]
[398421861,1765636110402,-10000.01,0.00015837,2]
[398421862,1765636110417,-10000.01,0.00015837,2]
[398421863,1765636110432,-10000.01,0.00015837,2]
[398421864,1765636110454,-10000.01,0.00015837,2]
[398421865,1765636110472,-10000.01,0.00015837,2]
[398421866,1765636111372,-180.16924006,0.00015837,2]
[398421867,1765636113124,250.0,0.00015232,2]
[398421868,1765636119986,16968.66323257,0.00015,2]
[398421871,1765636157899,-188.92226842,0.00015736,2]
[398421872,1765636157950,-195.0,0.00015785,2]
[398421873,1765636157999,-195.0,0.00015816,2]
[398421874,1765636158050,-300.0,0.00015835,2]
[398421875,1765636158100,-500.0,0.00015836,2]
[398421876,1765636158151,-406.47534906,0.00015836,2]
[398421877,1765636158202,-204.80288554,0.00015836,2]
[398421878,1765636158251,-622.39241614,0.00015836,2]
[398421879,1765636158303,-500.0,0.00015836,2]
[398421880,1765636158357,-500.0,0.00015836,2]
[398421881,1765636158411,-639.01740919,0.00015836,2]
[398421882,1765636158461,-500.0,0.00015836,2]
[398421883,1765636158512,-203.66648581,0.00015836,2]
[398421884,1765636158734,-89.45637168,0.00015836,2]
[398421885,1765636158789,-500.0,0.00015836,2]
[398421886,1765636158844,-500.0,0.00015836,2]
[398421887,1765636158894,-500.0,0.00015836,2]
[398421888,1765636158946,-237.07791766,0.00015836,2]
[398421889,1765636159560,-89.45637168,0.00015837,2]
[398421890,1765636160164,-6346.94142132,0.00015837,2]
[398421891,1765636160196,-10000.01,0.00015837,2]
[398421892,1765636160223,-10000.01,0.00015837,2]
[398421893,1765636163815,-10000.01,0.00015837,2]
[398421894,1765636163944,-10000.01,0.00015837,2]
[398421895,1765636164058,-10000.01,0.00015837,2]
[398421896,1765636164175,-10000.01,0.00015837,2]
[398421897,1765636172480,-271.63970082,0.00015616,2]
[398421898,1765636188004,-228.36029918,0.00015616,2]
[398421899,1765636188027,-115.48400263,0.00015671,2]
[398421900,1765636202529,-184.6945298,0.00015671,2]
[398421901,1765636217469,-281.0,0.00015671,2]
[398421902,1765636217494,-8.01961158,0.00015671,2]
[398421903,1765636220929,-191.80185599,0.00015671,2]
[398421904,1765636220954,-3.19814401,0.00015671,2]
[398421905,1765636222409,-284.0,0.00015671,2]
[398421912,1765636231355,-500.0,0.00015644,2]
[398421913,1765636231367,-212.80185599,0.00015671,2]
[398421914,1765636231376,-482.19817523,0.00015737,2]
[398421915,1765636231386,-4002.19037339,0.00015737,2]
[398421916,1765636231418,-326.58769091,0.00015737,2]
[398421917,1765636231477,-1501.99056459,0.00015737,2]
[398421918,1765636231539,-427.13399201,0.00015737,2]
[398421919,1765636231551,-9223.80963141,0.00015737,2]
[398421920,1765636231561,-495.265451,0.00015757,2]
[398421921,1765636231570,-300.0,0.00015836,2]
[398421922,1765636231580,-429030.13081343,0.00015837,2]
[398421923,1765636231589,-639.8382,0.00015837,2]
[398421924,1765636231599,-1000.0,0.00015837,2]
[398421925,1765636231614,-360.47752574,0.00015837,2]
[398421927,1765636231623,-213.20413884,0.00015837,2]
[398421929,1765636231633,-7901.25999699,0.00015837,2]
[398421931,1765636231642,-668.58699948,0.00015838,2]
[398421933,1765636231652,-15481.71225225,0.00015869,2]
[398421935,1765636231662,-327.76056727,0.000159,2]
[398421936,1765636231671,-514.18,0.00015927,3]
[398421938,1765636231682,-200.0,0.00015927,2]
[398421940,1765636231691,-500.0,0.00015927,2]
[398421941,1765636231701,-500.0,0.00015927,2]
[398421942,1765636231710,-242.25792744,0.00015927,2]
[398421943,1765636231720,-151.0,0.00015927,2]
[398421944,1765636231729,-500.0,0.00015927,2]
[398421945,1765636231739,-151.0,0.00015927,2]
[398421946,1765636231748,-500.0,0.00015927,2]
[398421947,1765636231758,-151.0,0.00015927,2]
[398421948,1765636231767,-500.0,0.00015927,2]
[398421949,1765636231777,-151.0,0.00015927,2]
[398421950,1765636231786,-200.0,0.00015927,2]
[398421951,1765636231795,-500.0,0.00015927,2]
[398421952,1765636231804,-151.0,0.00015927,2]
[398421953,1765636231814,-500.0,0.00015927,2]
[398421954,1765636231824,-151.0,0.00015927,2]
[398421955,1765636231833,-151.0,0.00015927,2]
[398421956,1765636231842,-500.0,0.00015927,2]
[398421957,1765636231852,-151.0,0.00015927,2]
[398421958,1765636231861,-151.0,0.00015927,2]
[398421959,1765636231871,-151.0,0.00015927,2]
[398421960,1765636231880,-305.78070651,0.00015927,2]
[398421961,1765636231890,-151.0,0.00015927,2]
[398421962,1765636231900,-151.0,0.00015927,2]
[398421963,1765636231909,-151.0,0.00015927,2]
[398421964,1765636231918,-154.86697558,0.00015927,2]
[398421965,1765636231928,-200.0,0.00015927,2]
[398421966,1765636231937,-151.0,0.00015927,2]
[398421967,1765636231946,-151.0,0.00015927,2]
[398421968,1765636231956,-151.0,0.00015927,2]
[398421969,1765636231966,-151.0,0.00015927,2]
[398421970,1765636231976,-151.0,0.00015927,2]
[398421971,1765636231985,-151.0,0.00015927,2]
[398421972,1765636231995,-151.0,0.00015927,2]
[398421973,1765636232004,-151.0,0.00015927,2]
[398421974,1765636232014,-151.0,0.00015927,2]
[398421975,1765636232024,-151.0,0.00015927,2]
[398421976,1765636232034,-151.0,0.00015927,2]
[398421977,1765636232044,-500.0,0.00015936,2]
[398421978,1765636232054,-500.0,0.00015936,2]
[398421979,1765636232064,-500.0,0.00015936,2]
[398421980,1765636232073,-500.0,0.00015936,2]
[398421981,1765636232083,-500.0,0.00015936,2]
[398421982,1765636232092,-500.0,0.00015936,2]
[398421983,1765636232101,-500.0,0.00015936,2]
[398421984,1765636232111,-500.0,0.00015936,2]
[398421985,1765636232122,-182.88370463,0.00015936,2]
[398421986,1765636232133,-500.0,0.00015936,2]
[398421987,1765636232143,-500.0,0.00015936,2]
[398421988,1765636232154,-213.2497066,0.00015936,2]
[398421989,1765636232164,-1457.395,0.00015936,2]
[398421990,1765636232174,-168.069,0.00015936,2]
[398421991,1765636232183,-500.0,0.00015936,2]
[398421992,1765636232193,-161.4151,0.00015937,2]
[398421993,1765636232202,-7400.4004,0.00015937,2]
[398421994,1765636232212,-1000.0,0.00015937,2]
[398421995,1765636232222,-183.67518317,0.0001599,2]
[398421996,1765636232232,-151.0,0.00015997,2]
[398421997,1765636232241,-300.0,0.00016,2]
[398421998,1765636232251,-1000.0,0.00016,2]
[398421999,1765636232261,-1000.0,0.00016,2]
[398422000,1765636232270,-1000.0,0.00016,2]
[398422001,1765636232279,-799.0,0.00016,2]
[398422002,1765636232289,-1000.0,0.00016,2]
[398422003,1765636232299,-1000.0,0.00016,2]
[398422004,1765636232309,-578.20924308,0.00016,2]
[398422005,1765636232318,-1000.0,0.00016,2]
[398422006,1765636232328,-1000.0,0.00016,2]
[398422007,1765636232338,-574.12855637,0.00016,2]
[398422008,1765636232348,-1000.0,0.00016,2]
[398422009,1765636232358,-1000.0,0.00016,2]
[398422010,1765636232369,-1000.0,0.00016,2]
[398422011,1765636232378,-1000.0,0.00016,2]
[398422012,1765636232387,-500.0,0.00016,2]
[398422013,1765636232398,-250.0,0.00016,2]
[398422014,1765636232408,-250.0,0.00016,2]
[398422015,1765636232419,-250.0,0.00016,2]
[398422016,1765636232430,-250.0,0.00016,2]
[398422017,1765636232440,-262.64147275,0.00016,2]
[398422018,1765636232449,-200.0,0.00016,2]
[398422019,1765636232459,-207.4,0.00016,2]
[398422020,1765636232468,-215.0738,0.00016,2]
[398422021,1765636232478,-304.43034152,0.00016,2]
[398422022,1765636232488,-151.0,0.00016,2]
[398422023,1765636232497,-22954.81416554,0.00016,2]
[398422024,1765636232507,-6945.71585071,0.00016,2]
[398422025,1765636232517,-92971.29771012,0.00016,4]
[398422026,1765636232529,-74962.48618228,0.00016,4]
[398422027,1765636232542,-36587.33175469,0.00016,4]
[398422028,1765636232553,-96614.75193185,0.00016,4]
[398422029,1765636232565,-820.7253007,0.00016,4]
[398422030,1765636237356,-8785.48185222,0.00016,4]
[398422031,1765636237479,-15085.29686637,0.00016,4]
[398422032,1765636237493,-362178.96169127,0.00016,4]
[398422033,1765636237504,-15481.71225225,0.00016001,2]
[398422034,1765636237514,-482.19817519,0.00016046,2]
[398422035,1765636237525,-799.0,0.00016055,2]
[398422036,1765636237536,-7901.25999694,0.00016066,2]
[398422037,1765636237547,-799.0,0.0001611,2]
[398422038,1765636237557,-160.86,0.00016116,2]
[398422039,1765636237566,-15481.71225225,0.00016132,2]
[398422040,1765636237575,-500.0,0.00016137,2]
[398422041,1765636237584,-500.0,0.00016137,2]
[398422042,1765636237593,-500.0,0.00016137,2]
[398422044,1765636237604,-500.0,0.00016137,2]
[398422046,1765636237616,-500.0,0.00016137,2]
[398422048,1765636237625,-500.0,0.00016137,2]
[398422050,1765636237634,-641.1096514,0.00016137,2]
[398422052,1765636237643,-500.0,0.00016137,2]
[398422053,1765636237655,-500.0,0.00016137,2]
[398422054,1765636237665,-500.0,0.00016137,2]
[398422055,1765636237676,-799.0,0.00016165,2]
[398422056,1765636237685,-150.0,0.00016175,2]
[398422057,1765636237695,-150.0,0.00016175,2]